fUST/lending_fUST_20250627
["ID","MTS","AMOUNT","RATE_DAILY","PERIOD"]
[368015622,1750993774814,-460.0,0.00019178,2]
[368015623,1750993774836,-500.0,0.00019178,2]
[368015624,1750993774857,-460.0,0.00019178,2]
[368015625,1750993774881,-460.0,0.00019178,2]
[368015626,1750993774902,-460.0,0.00019178,2]
[368015627,1750993774924,-460.0,0.00019178,2]
[368015628,1750993774947,-486.60485798,0.00019178,2]
[368015629,1750993774969,-460.0,0.00019178,2]
[368015630,1750993774990,-460.0,0.00019178,2]
[368015631,1750993775013,-460.0,0.00019178,2]
[368015632,1750993775035,-460.0,0.00019178,2]
[368015633,1750993775066,-460.0,0.00019178,2]
[368015634,1750993775090,-460.0,0.00019178,2]
[368015635,1750993775113,-228.33758238,0.00019178,2]
[368015636,1750993775135,-598.29847141,0.00019178,2]
[368015637,1750993775155,-460.0,0.00019178,2]
[368015638,1750993775177,-460.0,0.00019178,2]
[368015639,1750993775198,-460.0,0.00019178,2]
[368015640,1750993775218,-460.0,0.00019178,2]
[368015641,1750993775239,-503.06267903,0.00019178,2]
[368015642,1750993775260,-460.0,0.00019178,2]
[368015643,1750993775280,-460.0,0.00019178,2]
[368015644,1750993775301,-239.58246835,0.00019178,2]
[368015645,1750993775322,-460.0,0.00019178,2]
[368015646,1750993775343,-460.0,0.00019178,2]
[368015647,1750993775364,-460.0,0.00019178,2]
[368015648,1750993775385,-394.49016833,0.00019178,2]
[368015649,1750993775407,-460.0,0.00019178,2]
[368015650,1750993775429,-460.0,0.00019178,2]
[368015651,1750993775450,-460.0,0.00019178,2]
[368015652,1750993775472,-460.0,0.00019178,2]
[368015653,1750993775493,-460.0,0.00019178,2]
[368015654,1750993775516,-460.0,0.00019178,2]
[368015655,1750993775539,-460.0,0.00019178,2]
[368015656,1750993775561,-552.13,0.00019178,2]
[368015657,1750993775583,-460.0,0.00019178,2]
[368015658,1750993775604,-460.0,0.00019178,2]
[368015659,1750993775624,-464.04400676,0.00019178,2]
[368015660,1750993775645,-460.0,0.00019178,2]
[368015661,1750993775666,-760.17,0.00019178,2]
[368015662,1750993775687,-460.0,0.00019178,2]
[368015663,1750993775708,-460.0,0.00019178,2]
[368015664,1750993775730,-460.0,0.00019178,2]
[368015665,1750993775752,-460.0,0.00019178,2]
[368015666,1750993775773,-460.0,0.00019178,2]
[368015667,1750993775948,-460.0,0.00019178,2]
[368015668,1750993775972,-460.0,0.00019178,2]
[368015669,1750993775995,-500.0,0.00019178,2]
[368015670,1750993776020,-460.0,0.00019178,2]
[368015671,1750993776042,-460.0,0.00019178,2]
[368015672,1750993776065,-460.0,0.00019178,2]
[368015673,1750993776085,-460.0,0.00019178,2]
[368015674,1750993776107,-460.0,0.00019178,2]
[368015675,1750993776129,-813.26,0.00019178,2]
[368015676,1750993776154,-461.05821207,0.00019178,2]
[368015677,1750993776177,-460.0,0.00019178,2]
[368015678,1750993776201,-460.0,0.00019178,2]
[368015679,1750993776223,-460.0,0.00019178,2]
[368015680,1750993776247,-460.0,0.00019178,2]
[368015681,1750993776268,-460.0,0.00019178,2]
[368015682,1750993776293,-346.66757672,0.00019178,2]
[368015683,1750993776314,-460.0,0.00019178,2]
[368015684,1750993776336,-460.0,0.00019178,2]
[368015685,1750993776358,-460.0,0.00019178,2]
[368015686,1750993776379,-460.0,0.00019178,2]
[368015687,1750993776400,-460.0,0.00019178,2]
[368015688,1750993776420,-460.0,0.00019178,2]
[368015689,1750993776442,-460.0,0.00019178,2]
[368015690,1750993776464,-460.0,0.00019178,2]
[368015691,1750993776486,-460.0,0.00019178,2]
[368015692,1750993776508,-460.0,0.00019178,2]
[368015693,1750993776530,-460.0,0.00019178,2]
[368015694,1750993776552,-460.0,0.00019178,2]
[368015695,1750993776574,-500.0,0.00019178,2]
[368015696,1750993776596,-500.0,0.00019178,2]
[368015697,1750993776618,-809.98,0.00019178,2]
[368015698,1750993776640,-460.0,0.00019178,2]
[368015699,1750993776661,-460.0,0.00019178,2]
[368015700,1750993776683,-460.0,0.00019178,2]
[368015701,1750993776704,-469.54264064,0.00019178,2]
[368015702,1750993776726,-460.0,0.00019178,2]
[368015703,1750993776748,-460.0,0.00019178,2]
[368015704,1750993776770,-460.0,0.00019178,2]
[368015705,1750993776791,-460.0,0.00019178,2]
[368015706,1750993776812,-460.0,0.00019178,2]
[368015707,1750993776833,-460.0,0.00019178,2]
[368015708,1750993776854,-460.0,0.00019178,2]
[368015709,1750993776878,-623.74,0.00019178,2]
[368015710,1750993776900,-460.0,0.00019178,2]
[368015711,1750993776920,-461.69323304,0.00019178,2]
[368015712,1750993776942,-4187.16,0.00019178,2]
[368015713,1750993776964,-460.0,0.00019178,2]
[368015714,1750993776985,-460.0,0.00019178,2]
[368015715,1750993777008,-1886.61,0.00019178,2]
[368015716,1750993777029,-460.0,0.00019178,2]
[368015717,1750993777049,-467.98909319,0.00019178,2]
[368015718,1750993777069,-460.0,0.00019178,2]
[368015719,1750993777089,-460.0,0.00019178,2]
[368015720,1750993777109,-460.0,0.00019178,2]
[368015721,1750993777130,-460.0,0.00019178,2]
[368015722,1750993777151,-466.90449893,0.00019178,2]
[368015723,1750993777171,-574.34,0.00019178,2]
[368015724,1750993777192,-673.03,0.00019178,2]
[368015725,1750993777214,-460.0,0.00019178,2]
[368015726,1750993777236,-460.0,0.00019178,2]
[368015727,1750993777258,-421.94333841,0.00019178,2]
[368015746,1750993832220,-2565.5327068,0.00018497,2]
[368015747,1750993832230,-2565.5327068,0.00018775,2]
[368015748,1750993832240,-650.79598548,0.00019078,2]
[368015749,1750993832250,-2565.5327068,0.00019143,2]
[368015750,1750993832259,-300.0,0.00019177,2]
[368015751,1750993832268,-39.03195981,0.00019178,2]
[368015752,1750993832278,-495.7935569,0.00019178,2]
[368015753,1750993832287,-460.0,0.00019178,2]
[368015754,1750993832296,-409.98114128,0.00019178,2]
[368015755,1750993832306,-460.0,0.00019178,2]
[368015756,1750993832315,-460.0,0.00019178,2]
[368015757,1750993832324,-500.0,0.00019178,2]
[368015758,1750993832334,-460.0,0.00019178,2]
[368015759,1750993832343,-500.0,0.00019178,2]
[368015760,1750993832352,-879.15,0.00019178,2]
[368015761,1750993832361,-460.0,0.00019178,2]
[368015762,1750993832370,-463.86865968,0.00019178,2]
[368015763,1750993832379,-460.0,0.00019178,2]
[368015764,1750993832388,-569.58,0.00019178,2]
[368015765,1750993832397,-460.0,0.00019178,2]
[368015766,1750993832407,-460.0,0.00019178,2]
[368015767,1750993832416,-261.87197097,0.00019178,2]
[368015768,1750993832426,-601.06541185,0.00019178,2]
[368015769,1750993832436,-464.49062773,0.00019178,2]
[368015770,1750993832447,-735.15,0.00019178,2]
[368015771,1750993832457,-460.0,0.00019178,2]
[368015772,1750993832467,-460.0,0.00019178,2]
[368015773,1750993832477,-460.0,0.00019178,2]
[368015774,1750993832486,-1769.59,0.00019178,2]
[368015775,1750993832495,-460.0,0.00019178,2]
[368015776,1750993832505,-828.44,0.00019178,2]
[368015777,1750993832515,-579.76,0.00019178,2]
[368015778,1750993832524,-460.0,0.00019178,2]
[368015779,1750993832534,-460.0,0.00019178,2]
[368015780,1750993832544,-460.0,0.00019178,2]
[368015781,1750993832553,-425.3174082,0.00019178,2]
[368015782,1750993832563,-460.0,0.00019178,2]
[368015783,1750993832572,-460.0,0.00019178,2]
[368015784,1750993832582,-619.94,0.00019178,2]
[368015785,1750993832591,-475.92,0.00019178,2]
[368015786,1750993832600,-460.0,0.00019178,2]
[368015787,1750993832609,-460.0,0.00019178,2]
[368015788,1750993832619,-460.0,0.00019178,2]
[368015789,1750993832628,-460.0,0.00019178,2]
[368015790,1750993832637,-460.0,0.00019178,2]
[368015791,1750993832646,-460.0,0.00019178,2]
[368015792,1750993832656,-460.0,0.00019178,2]
[368015793,1750993832665,-460.0,0.00019178,2]
[368015794,1750993832674,-462.39573078,0.00019178,2]
[368015795,1750993832684,-460.0,0.00019178,2]
[368015796,1750993832694,-460.0,0.00019178,2]
[368015797,1750993832703,-460.0,0.00019178,2]
[368015798,1750993832713,-460.0,0.00019178,2]
[368015799,1750993832722,-503.74,0.00019178,2]
[368015800,1750993832732,-1679.36,0.00019178,2]
[368015801,1750993832742,-460.0,0.00019178,2]
[368015802,1750993832752,-1000.09,0.00019178,2]
[368015803,1750993832762,-1715.73,0.00019178,2]
[368015804,1750993832771,-505.96358279,0.00019178,2]
[368015805,1750993832780,-464.8063405,0.00019178,2]
[368015806,1750993832790,-460.0,0.00019178,2]
[368015807,1750993832799,-460.0,0.00019178,2]
[368015808,1750993832808,-466.93,0.00019178,2]
[368015809,1750993832817,-460.0,0.00019178,2]
[368015810,1750993832826,-555.13,0.00019178,2]
[368015811,1750993832835,-2909.1,0.00019178,2]
[368015812,1750993832844,-464.68563727,0.00019178,2]
[368015813,1750993832852,-856.07,0.00019178,2]
[368015814,1750993832861,-460.0,0.00019178,2]
[368015815,1750993832871,-639.15,0.00019178,2]
[368015816,1750993832879,-460.0,0.00019178,2]
[368015817,1750993832892,-460.0,0.00019178,2]
[368015818,1750993832902,-460.0,0.00019178,2]
[368015819,1750993832911,-460.0,0.00019178,2]
[368015820,1750993832921,-460.0,0.00019178,2]
[368015821,1750993832931,-460.0,0.00019178,2]
[368015822,1750993832941,-460.0,0.00019178,2]
[368015823,1750993832950,-648.7,0.00019178,2]
[368015824,1750993832960,-476.80838209,0.00019178,2]
[368015825,1750993832969,-460.0,0.00019178,2]
[368015826,1750993832979,-1295.71,0.00019178,2]
[368015827,1750993832988,-460.0,0.00019178,2]
[368015828,1750993832998,-463.00624733,0.00019178,2]
[368015829,1750993833007,-460.0,0.00019178,2]
[368015830,1750993833017,-460.0,0.00019178,2]
[368015831,1750993833026,-428.4340608,0.00019178,2]
[368015832,1750993833036,-460.0,0.00019178,2]
[368015833,1750993833046,-460.0,0.00019178,2]
[368015834,1750993833056,-460.0,0.00019178,2]
[368015835,1750993833066,-460.0,0.00019178,2]
[368015836,1750993833076,-460.0,0.00019178,2]
[368015837,1750993833085,-2225.69,0.00019178,2]
[368015838,1750993833320,-906.19,0.00019178,2]
[368015839,1750993833332,-2569.75,0.00019178,2]
[368015840,1750993833342,-460.0,0.00019178,2]
[368015841,1750993833352,-460.0,0.00019178,2]
[368015842,1750993833362,-460.0,0.00019178,2]
[368015843,1750993833371,-460.0,0.00019178,2]
[368015844,1750993833381,-461.74762562,0.00019178,2]
[368015845,1750993833390,-460.0,0.00019178,2]
[368015846,1750993833399,-804.78,0.00019178,2]
[368015847,1750993833409,-460.0,0.00019178,2]
[368015848,1750993833418,-460.0,0.00019178,2]
[368015849,1750993833427,-460.0,0.00019178,2]
[368015850,1750993833437,-460.0,0.00019178,2]
[368015851,1750993833447,-460.0,0.00019178,2]
[368015852,1750993833457,-460.0,0.00019178,2]
[368015853,1750993833466,-460.0,0.00019178,2]
[368015854,1750993833476,-874.44,0.00019178,2]
[368015855,1750993833487,-460.0,0.00019178,2]
[368015856,1750993833497,-460.0,0.00019178,2]
[368015857,1750993833507,-460.0,0.00019178,2]
[368015858,1750993833517,-460.0,0.00019178,2]
[368015859,1750993833527,-2666.41,0.00019178,2]
[368015860,1750993833538,-460.0,0.00019178,2]
[368015861,1750993833549,-699.76,0.00019178,2]
[368015862,1750993833559,-460.0,0.00019178,2]
[368015863,1750993833569,-851.37,0.00019178,2]
[368015864,1750993833580,-460.0,0.00019178,2]
[368015865,1750993833590,-462.23221619,0.00019178,2]
[368015866,1750993833600,-460.0,0.00019178,2]
[368015867,1750993833610,-460.0,0.00019178,2]
[368015868,1750993833620,-460.0,0.00019178,2]
[368015869,1750993833630,-460.0,0.00019178,2]
[368015870,1750993833640,-489.1788895,0.00019178,2]
[368015871,1750993833650,-464.15347017,0.00019178,2]
[368015872,1750993833660,-460.0,0.00019178,2]
[368015873,1750993833669,-460.0,0.00019178,2]
[368015874,1750993833679,-290.9911687,0.00019178,2]
[368015875,1750993833689,-293.53260678,0.00019178,2]
[368015876,1750993833699,-460.0,0.00019178,2]
[368015877,1750993833709,-460.0,0.00019178,2]
[368015878,1750993833719,-460.0,0.00019178,2]
[368015879,1750993833729,-460.0,0.00019178,2]
[368015880,1750993833739,-460.0,0.00019178,2]
[368015881,1750993833749,-460.0,0.00019178,2]
[368015882,1750993833758,-460.0,0.00019178,2]
[368015883,1750993833768,-500.0,0.00019178,2]
[368015884,1750993833778,-1321.99,0.00019178,2]
[368015885,1750993833788,-779.38,0.00019178,2]
[368015886,1750993833797,-463.2931116,0.00019178,2]
[368015887,1750993833806,-460.0,0.00019178,2]
[368015888,1750993833815,-460.0,0.00019178,2]
[368015889,1750993833825,-460.0,0.00019178,2]
[368015890,1750993833834,-460.0,0.00019178,2]
[368015891,1750993833844,-462.76327329,0.00019178,2]
[368015892,1750993833853,-1808.0,0.00019178,2]
[368015893,1750993833864,-460.0,0.00019178,2]
[368015894,1750993833874,-677.46,0.00019178,2]
[368015895,1750993833883,-460.0,0.00019178,2]
[368015896,1750993833898,-460.0,0.00019178,2]
[368015897,1750993833915,-2316.58,0.00019178,2]
[368015898,1750993833924,-4012.69,0.00019178,2]
[368015899,1750993833935,-464.15147051,0.00019178,2]
[368015900,1750993833945,-366.0585355,0.000193,2]
[368015901,1750993833954,-2565.5327068,0.00019343,2]
[368015902,1750993833964,-520.32878369,0.00019352,2]
[368015903,1750993833974,-27864.12474352,0.00019352,2]
[368015904,1750993833983,-835.16,0.00019442,3]
[368015905,1750993833992,-1043.96,0.00019442,3]
[368015906,1750993834002,-521.98,0.00019442,3]
[368015907,1750993834011,-260.99,0.00019442,3]
[368015908,1750993834021,-460.0,0.00019452,2]
[368015909,1750993834031,-460.0,0.00019452,2]
[368015910,1750993834041,-460.0,0.00019452,2]
[368015911,1750993834050,-460.0,0.00019452,2]
[368015912,1750993834060,-460.0,0.00019452,2]
[368015913,1750993834070,-460.0,0.00019452,2]
[368015914,1750993834081,-460.0,0.00019452,2]
[368015915,1750993834093,-460.0,0.00019452,2]
[368015916,1750993834102,-463.98,0.00019452,2]
[368015917,1750993834114,-460.0,0.00019452,2]
[368015918,1750993834124,-460.0,0.00019452,2]
[368015919,1750993834135,-460.0,0.00019452,2]
[368015920,1750993834144,-460.0,0.00019452,2]
[368015921,1750993834154,-460.0,0.00019452,2]
[368015922,1750993834163,-583.0652797,0.00019452,2]
[368015923,1750993834175,-460.0,0.00019452,2]
[368015924,1750993834184,-460.0,0.00019452,2]
[368015925,1750993834195,-460.0,0.00019452,2]
[368015926,1750993834206,-393.24935441,0.00019452,2]
[368015927,1750993834216,-460.0,0.00019452,2]
[368015928,1750993834226,-728.52,0.00019452,2]
[368015929,1750993834237,-460.0,0.00019452,2]
[368015930,1750993834247,-460.0,0.00019452,2]
[368015931,1750993834258,-460.0,0.00019452,2]
[368015932,1750993834268,-460.0,0.00019452,2]
[368015933,1750993834278,-234.55,0.00019452,2]
[368015934,1750993834288,-253.02753029,0.00019452,2]
[368015935,1750993834298,-460.0,0.00019452,2]
[368015936,1750993834308,-460.0,0.00019452,2]
[368015937,1750993834319,-460.0,0.00019452,2]
[368015938,1750993834330,-460.0,0.00019452,2]
[368015939,1750993834340,-1365.31,0.00019452,2]
[368015940,1750993834351,-460.0,0.00019452,2]
[368015941,1750993834360,-460.0,0.00019452,2]
[368015942,1750993834370,-460.0,0.00019452,2]
[368015943,1750993834381,-335.7287704,0.00019452,2]
[368015944,1750993834390,-460.0,0.00019452,2]
[368015945,1750993834400,-460.0,0.00019452,2]
[368015946,1750993834410,-460.0,0.00019452,2]
[368015947,1750993834420,-460.0,0.00019452,2]
[368015948,1750993834430,-460.0,0.00019452,2]
[368015949,1750993834439,-460.0,0.00019452,2]
[368015950,1750993834448,-460.0,0.00019452,2]
[368015951,1750993834459,-541.06,0.00019452,2]
[368015952,1750993834469,-500.0,0.00019452,2]
[368015953,1750993834479,-552.13,0.00019452,2]
[368015954,1750993834488,-460.0,0.00019452,2]
[368015955,1750993834498,-460.0,0.00019452,2]
[368015956,1750993834507,-760.17,0.00019452,2]
[368015957,1750993834518,-460.0,0.00019452,2]
[368015958,1750993834527,-460.0,0.00019452,2]
[368015959,1750993834537,-460.0,0.00019452,2]
[368015960,1750993834546,-460.0,0.00019452,2]
[368015961,1750993834556,-460.0,0.00019452,2]
[368015962,1750993834566,-460.0,0.00019452,2]
[368015963,1750993834576,-460.0,0.00019452,2]
[368015964,1750993834585,-500.0,0.00019452,2]
[368015965,1750993834595,-460.0,0.00019452,2]
[368015966,1750993834605,-809.98,0.00019452,2]
[368015967,1750993834615,-445.35427513,0.00019452,2]
[368015968,1750993834624,-460.0,0.00019452,2]
[368015969,1750993834634,-460.0,0.00019452,2]
[368015970,1750993834644,-460.0,0.00019452,2]
[368015971,1750993834654,-460.0,0.00019452,2]
[368015972,1750993834664,-500.0,0.00019452,2]
[368015973,1750993834675,-460.0,0.00019452,2]
[368015974,1750993834684,-623.74,0.00019452,2]
[368015975,1750993834694,-460.0,0.00019452,2]
[368015976,1750993834704,-460.0,0.00019452,2]
[368015977,1750993834714,-460.0,0.00019452,2]
[368015978,1750993834725,-574.34,0.00019452,2]
[368015979,1750993834735,-673.03,0.00019452,2]
[368015980,1750993834746,-460.0,0.00019452,2]
[368015981,1750993834755,-460.0,0.00019452,2]
[368015982,1750993834766,-879.15,0.00019452,2]
[368015983,1750993834776,-460.0,0.00019452,2]
[368015984,1750993834786,-460.0,0.00019452,2]
[368015985,1750993834796,-735.15,0.00019452,2]
[368015986,1750993834806,-460.0,0.00019452,2]
[368015987,1750993834815,-460.0,0.00019452,2]
[368015988,1750993834824,-277.39100473,0.00019452,2]
[368016024,1750993838269,-460.0,0.00019178,2]
[368016026,1750993838278,-555.6,0.00019178,2]
[368016028,1750993838287,-1492.19899527,0.00019452,2]
[368016030,1750993838296,-828.44,0.00019452,2]
[368016032,1750993838306,-460.0,0.00019452,2]
[368016034,1750993838315,-460.0,0.00019452,2]
[368016036,1750993838324,-460.0,0.00019452,2]
[368016038,1750993838333,-619.94,0.00019452,2]
[368016040,1750993838342,-475.92,0.00019452,2]
[368016042,1750993838352,-460.0,0.00019452,2]
[368016044,1750993838361,-168.0993574,0.00019452,2]
[368016046,1750993838370,-460.0,0.00019452,2]
[368016048,1750993838379,-500.0,0.00019452,2]
[368016050,1750993838389,-460.0,0.00019452,2]
[368016052,1750993838398,-460.0,0.00019452,2]
[368016054,1750993838407,-460.0,0.00019452,2]
[368016056,1750993838416,-503.74,0.00019452,2]
[368016058,1750993838425,-1679.36,0.00019452,2]
[368016060,1750993838435,-500.0,0.00019452,2]
[368016062,1750993838444,-1000.09,0.00019452,2]
[368016064,1750993838454,-1715.73,0.00019452,2]
[368016066,1750993838463,-460.0,0.00019452,2]
[368016068,1750993838473,-460.0,0.00019452,2]
[368016070,1750993838483,-466.93,0.00019452,2]
[368016072,1750993838492,-253.93845296,0.00019452,2]
[368016074,1750993838502,-555.13,0.00019452,2]
[368016076,1750993838511,-2909.1,0.00019452,2]
[368016078,1750993838520,-856.07,0.00019452,2]
[368016080,1750993838530,-460.0,0.00019452,2]
[368016082,1750993838540,-639.15,0.00019452,2]
[368016084,1750993838549,-460.0,0.00019452,2]
[368016086,1750993838558,-460.0,0.00019452,2]
[368016088,1750993838568,-460.0,0.00019452,2]
[368016090,1750993838579,-460.0,0.00019452,2]
[368016092,1750993838588,-460.0,0.00019452,2]
[368016094,1750993838598,-648.7,0.00019452,2]
[368016096,1750993838608,-1295.71,0.00019452,2]
[368016098,1750993838618,-460.0,0.00019452,2]
[368016100,1750993838627,-460.0,0.00019452,2]
[368016102,1750993838637,-460.0,0.00019452,2]
[368016104,1750993838647,-460.0,0.00019452,2]
[368016106,1750993838656,-460.0,0.00019452,2]
[368016108,1750993838666,-2225.69,0.00019452,2]
[368016110,1750993838675,-906.19,0.00019452,2]
[368016112,1750993838684,-2569.75,0.00019452,2]
[368016114,1750993838694,-460.0,0.00019452,2]
[368016116,1750993838703,-460.0,0.00019452,2]
[368016118,1750993838713,-460.0,0.00019452,2]
[368016120,1750993838722,-804.78,0.00019452,2]
[368016122,1750993838731,-460.0,0.00019452,2]
[368016124,1750993838741,-460.0,0.00019452,2]
[368016126,1750993838750,-460.0,0.00019452,2]
[368016128,1750993838760,-460.0,0.00019452,2]
[368016130,1750993838769,-874.44,0.00019452,2]
[368016132,1750993838779,-460.0,0.00019452,2]
[368016133,1750993838789,-460.0,0.00019452,2]
[368016135,1750993838801,-2666.41,0.00019452,2]
[368016138,1750993838810,-699.76,0.00019452,2]
[368016140,1750993838819,-851.37,0.00019452,2]
[368016142,1750993838829,-460.0,0.00019452,2]
[368016144,1750993838838,-460.0,0.00019452,2]
[368016146,1750993838848,-460.0,0.00019452,2]
[368016148,1750993838857,-470.79891649,0.00019452,2]
[368016150,1750993838867,-460.0,0.00019452,2]
[368016152,1750993838876,-460.0,0.00019452,2]
[368016154,1750993838885,-460.0,0.00019452,2]
[368016156,1750993838897,-460.0,0.00019452,2]
[368016158,1750993838907,-460.0,0.00019452,2]
[368016160,1750993838917,-1321.99,0.00019452,2]
[368016162,1750993838927,-779.38,0.00019452,2]
[368016164,1750993838936,-232.5437507,0.00019452,2]
[368016166,1750993838945,-460.0,0.00019452,2]
[368016168,1750993838954,-505.38863357,0.00019452,2]
[368016170,1750993838963,-1808.0,0.00019452,2]
[368016172,1750993838972,-460.0,0.00019452,2]
[368016174,1750993838981,-677.46,0.00019452,2]
[368016176,1750993838990,-460.0,0.00019452,2]
[368016178,1750993839000,-2316.58,0.00019452,2]
[368016179,1750993839009,-4012.69,0.00019452,2]
[368016181,1750993839018,-159.16,0.00019452,2]
[368016183,1750993839027,-555.6,0.00019452,2]
[368016185,1750993839037,-2565.5327068,0.00019694,2]
[368016187,1750993839046,-500.0,0.00019725,2]
[368016189,1750993839056,-500.0,0.00019725,2]
[368016191,1750993839065,-582.23393811,0.00019725,2]
[368016193,1750993839074,-554.38532941,0.00019725,2]
[368016195,1750993839083,-500.0,0.00019725,2]
[368016196,1750993839092,-13121.48237691,0.00019726,2]
[368016197,1750993839101,-12972.42341348,0.00019726,2]
[368016198,1750993839111,-460.0,0.00019726,2]
[368016199,1750993839121,-460.0,0.00019726,2]
[368016200,1750993839130,-460.0,0.00019726,2]
[368016201,1750993839139,-460.0,0.00019726,2]
[368016202,1750993839151,-460.0,0.00019726,2]
[368016203,1750993839160,-460.0,0.00019726,2]
[368016204,1750993839169,-460.0,0.00019726,2]
[368016205,1750993839179,-460.0,0.00019726,2]
[368016206,1750993839190,-460.0,0.00019726,2]
[368016207,1750993839199,-460.0,0.00019726,2]
[368016208,1750993839209,-728.52,0.00019726,2]
[368016209,1750993839219,-460.0,0.00019726,2]
[368016210,1750993839229,-460.0,0.00019726,2]
[368016211,1750993839238,-460.0,0.00019726,2]
[368016212,1750993839247,-460.0,0.00019726,2]
[368016213,1750993839258,-518.98,0.00019726,2]
[368016214,1750993839267,-460.0,0.00019726,2]
[368016215,1750993839276,-460.0,0.00019726,2]
[368016216,1750993839286,-460.0,0.00019726,2]
[368016217,1750993839297,-1365.31,0.00019726,2]
[368016218,1750993839306,-460.0,0.00019726,2]
[368016219,1750993839316,-460.0,0.00019726,2]
[368016220,1750993839326,-460.0,0.00019726,2]
[368016221,1750993839336,-460.0,0.00019726,2]
[368016222,1750993839346,-460.0,0.00019726,2]
[368016223,1750993839355,-460.0,0.00019726,2]
[368016225,1750993839365,-460.0,0.00019726,2]
[368016227,1750993839374,-460.0,0.00019726,2]
[368016229,1750993839383,-552.13,0.00019726,2]
[368016231,1750993839392,-460.0,0.00019726,2]
[368016233,1750993839402,-460.0,0.00019726,2]
[368016235,1750993839412,-760.17,0.00019726,2]
[368016237,1750993839422,-460.0,0.00019726,2]
[368016239,1750993839431,-460.0,0.00019726,2]
[368016241,1750993839440,-460.0,0.00019726,2]
[368016243,1750993839450,-294.85625273,0.00019726,2]
[368016245,1750993839459,-460.0,0.00019726,2]
[368016247,1750993839469,-460.0,0.00019726,2]
[368016249,1750993839479,-809.98,0.00019726,2]
[368016250,1750993839488,-460.0,0.00019726,2]
[368016252,1750993839498,-460.0,0.00019726,2]
[368016254,1750993839507,-623.74,0.00019726,2]
[368016256,1750993839516,-460.0,0.00019726,2]
[368016258,1750993839526,-460.0,0.00019726,2]
[368016260,1750993839535,-460.0,0.00019726,2]
[368016262,1750993839545,-574.34,0.00019726,2]
[368016264,1750993839554,-673.03,0.00019726,2]
[368016266,1750993839564,-460.0,0.00019726,2]
[368016268,1750993839573,-460.0,0.00019726,2]
[368016270,1750993839582,-879.15,0.00019726,2]
[368016272,1750993839592,-460.0,0.00019726,2]
[368016274,1750993839601,-460.0,0.00019726,2]
[368016276,1750993839610,-735.15,0.00019726,2]
[368016278,1750993839619,-460.0,0.00019726,2]
[368016280,1750993839629,-460.0,0.00019726,2]
[368016282,1750993839638,-1769.59,0.00019726,2]
[368016284,1750993839647,-828.44,0.00019726,2]
[368016286,1750993839657,-460.0,0.00019726,2]
[368016288,1750993839666,-460.0,0.00019726,2]
[368016290,1750993839676,-460.0,0.00019726,2]
[368016292,1750993839685,-619.94,0.00019726,2]
[368016293,1750993839694,-475.92,0.00019726,2]